[Event "December 5 Early 2023"]
[Site "https://www.chess.com"]
[Date "2023.12.05"]
[Round "9"]
[White "Saravana, Krishnan P."]
[Black "Krysa, Leandro"]
[Result "0-1"]
[Board "59"]
[TimeControl "180+1"]
[WhiteFideId "5018382"]
[BlackFideId "116807"]
[WhiteElo "2555"]
[BlackElo "2718"]
[WhiteTeam "IND"]
[BlackTeam "ARG"]
[WhiteClock "0:00:03"]
[BlackClock "0:00:31"]

1. e4 {[%clk 0:03:00]}  e5 {[%clk 0:02:57]} 2. Nf3 {[%clk 0:03:00]}  Nc6 {[%clk 0:02:57]} 3. Bb5 {[%clk 0:02:59]}  a6 {[%clk 0:02:57]} 4. Ba4 {[%clk 0:03:00]}  Nf6 {[%clk 0:02:57]} 5. O-O {[%clk 0:02:59]}  Be7 {[%clk 0:02:57]} 6. Re1 {[%clk 0:02:58]}  b5 {[%clk 0:02:57]} 7. Bb3 {[%clk 0:02:59]}  d6 {[%clk 0:02:57]} 8. c3 {[%clk 0:02:59]}  O-O {[%clk 0:02:57]} 9. h3 {[%clk 0:02:59]}  Na5 {[%clk 0:02:55]} 10. Bc2 {[%clk 0:02:59]}  c5 {[%clk 0:02:56]} 11. d4 {[%clk 0:02:59]}  Nd7 {[%clk 0:02:56]} 12. Nbd2 {[%clk 0:02:57]}  exd4 {[%clk 0:02:53]} 13. cxd4 {[%clk 0:02:57]}  Nc6 {[%clk 0:02:52]} 14. d5 {[%clk 0:02:51]}  Nce5 {[%clk 0:02:51]} 15. a4 {[%clk 0:02:22]}  Rb8 {[%clk 0:02:45]} 16. axb5 {[%clk 0:02:22]}  axb5 {[%clk 0:02:46]} 17. Nxe5 {[%clk 0:02:14]}  Nxe5 {[%clk 0:02:46]} 18. f4 {[%clk 0:02:14]}  Ng6 {[%clk 0:02:46]} 19. Nf3 {[%clk 0:02:14]}  Bh4 {[%clk 0:02:39]} 20. Rf1 {[%clk 0:02:05]}  Bg3 {[%clk 0:02:38]} 21. f5 {[%clk 0:00:57]}  Ne5 {[%clk 0:02:38]} 22. Qe2 {[%clk 0:00:55]}  Nxf3+ {[%clk 0:02:33]} 23. Rxf3 {[%clk 0:00:54]}  Be5 {[%clk 0:02:33]} 24. Rb1 {[%clk 0:00:52]}  f6 {[%clk 0:02:29]} 25. Be3 {[%clk 0:00:47]}  Re8 {[%clk 0:02:21]} 26. Kh1 {[%clk 0:00:47]}  Qa5 {[%clk 0:02:15]} 27. Rff1 {[%clk 0:00:44]}  b4 {[%clk 0:02:08]} 28. Bd3 {[%clk 0:00:43]}  b3 {[%clk 0:02:01]} 29. Ra1 {[%clk 0:00:38]}  Qb4 {[%clk 0:01:50]} 30. Ra3 {[%clk 0:00:26]}  Bd7 {[%clk 0:01:36]} 31. Bc4 {[%clk 0:00:24]}  Bb5 {[%clk 0:01:29]} 32. Bxb5 {[%clk 0:00:20]}  Rxb5 {[%clk 0:01:21]} 33. Bd2 {[%clk 0:00:19]}  Qxa3 {[%clk 0:01:07]} 34. bxa3 {[%clk 0:00:18]}  Reb8 {[%clk 0:01:07]} 35. Rb1 {[%clk 0:00:17]}  b2 {[%clk 0:01:07]} 36. Qc4 {[%clk 0:00:17]}  Rb3 {[%clk 0:01:04]} 37. a4 {[%clk 0:00:17]}  Ra3 {[%clk 0:01:00]} 38. a5 {[%clk 0:00:17]}  Ra1 {[%clk 0:01:00]} 39. Qc2 {[%clk 0:00:17]}  Rb3 {[%clk 0:00:39]} 40. a6 {[%clk 0:00:13]}  Rxb1+ {[%clk 0:00:34]} 41. Qxb1 {[%clk 0:00:13]}  Ra3 {[%clk 0:00:35]} 42. Qf1 {[%clk 0:00:03]}  Ra1 {[%clk 0:00:31]} 0-1

[Event "December 5 Early 2023"]
[Site "https://www.chess.com"]
[Date "2023.12.05"]
[Round "9"]
[White "Hua, Lefong"]
[Black "Osmak, Yuliia"]
[Result "0-1"]
[Board "61"]
[TimeControl "180+1"]
[WhiteFideId "2602253"]
[BlackFideId "14101602"]
[WhiteElo "2702"]
[BlackElo "2547"]
[WhiteTeam "CAN"]
[BlackTeam "UKR"]
[WhiteClock "0:00:11"]
[BlackClock "0:00:06"]

1. d4 {[%clk 0:03:00]}  Nf6 {[%clk 0:02:57]} 2. c4 {[%clk 0:03:01]}  g6 {[%clk 0:02:57]} 3. Nc3 {[%clk 0:03:01]}  Bg7 {[%clk 0:02:55]} 4. e4 {[%clk 0:03:02]}  d6 {[%clk 0:02:56]} 5. f4 {[%clk 0:03:02]}  c5 {[%clk 0:02:53]} 6. d5 {[%clk 0:03:01]}  e6 {[%clk 0:02:49]} 7. Nf3 {[%clk 0:03:01]}  O-O {[%clk 0:02:47]} 8. Be2 {[%clk 0:02:58]}  exd5 {[%clk 0:02:47]} 9. cxd5 {[%clk 0:02:59]}  Re8 {[%clk 0:02:43]} 10. Nd2 {[%clk 0:02:59]}  b5 {[%clk 0:02:28]} 11. Bxb5 {[%clk 0:02:58]}  Bg4 {[%clk 0:02:22]} 12. Be2 {[%clk 0:02:49]}  Bxe2 {[%clk 0:02:20]} 13. Qxe2 {[%clk 0:02:50]}  Nxe4 {[%clk 0:02:13]} 14. Ncxe4 {[%clk 0:02:41]}  f5 {[%clk 0:02:12]} 15. O-O {[%clk 0:02:35]}  Nd7 {[%clk 0:01:57]} 16. Qf3 {[%clk 0:02:28]}  fxe4 {[%clk 0:01:56]} 17. Nxe4 {[%clk 0:02:29]}  Qe7 {[%clk 0:01:52]} 18. Ng5 {[%clk 0:02:24]}  Bd4+ {[%clk 0:01:43]} 19. Kh1 {[%clk 0:02:23]}  Qe2 {[%clk 0:01:38]} 20. Ne6 {[%clk 0:02:12]}  Qxf3 {[%clk 0:01:30]} 21. gxf3 {[%clk 0:02:09]}  Bf6 {[%clk 0:01:26]} 22. Nc7 {[%clk 0:02:08]}  Nb6 {[%clk 0:01:18]} 23. Rd1 {[%clk 0:01:57]}  Rac8 {[%clk 0:01:13]} 24. Nxe8 {[%clk 0:01:56]}  Rxe8 {[%clk 0:01:13]} 25. f5 {[%clk 0:01:49]}  gxf5 {[%clk 0:01:09]} 26. Bf4 {[%clk 0:01:49]}  Nc4 {[%clk 0:01:01]} 27. Rac1 {[%clk 0:01:43]}  Nxb2 {[%clk 0:00:58]} 28. Rg1+ {[%clk 0:01:41]}  Kf7 {[%clk 0:00:55]} 29. Bxd6 {[%clk 0:01:40]}  Rd8 {[%clk 0:00:46]} 30. Bg3 {[%clk 0:00:50]}  Rxd5 {[%clk 0:00:41]} 31. Rc2 {[%clk 0:00:50]}  c4 {[%clk 0:00:37]} 32. Rb1 {[%clk 0:00:44]}  c3 {[%clk 0:00:36]} 33. Be1 {[%clk 0:00:40]}  Rd3 {[%clk 0:00:25]} 34. Kg2 {[%clk 0:00:35]}  Nc4 {[%clk 0:00:24]} 35. Kf2 {[%clk 0:00:30]}  Ne3 {[%clk 0:00:18]} 36. Rb7+ {[%clk 0:00:26]}  Kg6 {[%clk 0:00:17]} 37. Re2 {[%clk 0:00:22]}  c2 {[%clk 0:00:15]} 38. Rc7 {[%clk 0:00:20]}  Bd4 {[%clk 0:00:14]} 39. Kg3 {[%clk 0:00:15]}  Rd1 {[%clk 0:00:13]} 40. Bf2 {[%clk 0:00:13]}  Be5+ {[%clk 0:00:10]} 41. f4 {[%clk 0:00:12]}  Bxc7 {[%clk 0:00:10]} 42. Bxe3 {[%clk 0:00:13]}  c1=Q {[%clk 0:00:09]} 43. Bxc1 {[%clk 0:00:13]}  Rxc1 {[%clk 0:00:10]} 44. Re6+ {[%clk 0:00:14]}  Kf7 {[%clk 0:00:08]} 45. Ra6 {[%clk 0:00:15]}  Bb6 {[%clk 0:00:08]} 46. Ra4 {[%clk 0:00:14]}  Rc3+ {[%clk 0:00:08]} 47. Kg2 {[%clk 0:00:14]}  Kg6 {[%clk 0:00:08]} 48. h3 {[%clk 0:00:13]}  Kh5 {[%clk 0:00:08]} 49. Ra6 {[%clk 0:00:12]}  Kh4 {[%clk 0:00:08]} 50. a4 {[%clk 0:00:12]}  Rc2+ {[%clk 0:00:08]} 51. Kf1 {[%clk 0:00:12]}  Kxh3 {[%clk 0:00:08]} 52. a5 {[%clk 0:00:13]}  Bd4 {[%clk 0:00:07]} 53. Rh6+ {[%clk 0:00:13]}  Kg4 {[%clk 0:00:07]} 54. Rh2 {[%clk 0:00:11]}  Rxh2 {[%clk 0:00:06]} 0-1

[Event "December 5 Early 2023"]
[Site "https://www.chess.com"]
[Date "2023.12.05"]
[Round "9"]
[White "Rietze, Clemens, Dr."]
[Black "Souleidis, Georgios"]
[Result "1-0"]
[Board "65"]
[TimeControl "180+1"]
[WhiteFideId "24620351"]
[BlackFideId "4206827"]
[WhiteElo "2526"]
[BlackElo "2662"]
[WhiteTeam "GER"]
[BlackTeam "GRE"]
[WhiteClock "0:00:12"]
[BlackClock "0:00:00"]

1. d4 {[%clk 0:03:00]}  Nf6 {[%clk 0:02:59]} 2. c4 {[%clk 0:03:00]}  g6 {[%clk 0:03:00]} 3. f3 {[%clk 0:02:51]}  Bg7 {[%clk 0:02:59]} 4. e4 {[%clk 0:02:51]}  d6 {[%clk 0:02:59]} 5. Nc3 {[%clk 0:02:52]}  O-O {[%clk 0:02:58]} 6. Be3 {[%clk 0:02:51]}  a6 {[%clk 0:02:55]} 7. Bd3 {[%clk 0:02:50]}  c6 {[%clk 0:02:54]} 8. a4 {[%clk 0:02:49]}  a5 {[%clk 0:02:54]} 9. Qd2 {[%clk 0:02:50]}  Na6 {[%clk 0:02:55]} 10. Rd1 {[%clk 0:02:50]}  Nb4 {[%clk 0:02:55]} 11. Bb1 {[%clk 0:02:51]}  Qc7 {[%clk 0:02:52]} 12. Nge2 {[%clk 0:02:50]}  e5 {[%clk 0:02:43]} 13. O-O {[%clk 0:02:50]}  Be6 {[%clk 0:02:37]} 14. d5 {[%clk 0:02:37]}  cxd5 {[%clk 0:02:37]} 15. exd5 {[%clk 0:02:12]}  Bd7 {[%clk 0:02:32]} 16. b3 {[%clk 0:02:12]}  Ne8 {[%clk 0:02:26]} 17. f4 {[%clk 0:01:53]}  Bg4 {[%clk 0:02:07]} 18. h3 {[%clk 0:01:22]}  Bxe2 {[%clk 0:02:06]} 19. Nxe2 {[%clk 0:01:22]}  exf4 {[%clk 0:01:55]} 20. Bxf4 {[%clk 0:01:19]}  Nf6 {[%clk 0:01:53]} 21. Nd4 {[%clk 0:01:08]}  Nh5 {[%clk 0:01:18]} 22. Nb5 {[%clk 0:01:05]}  Qb6+ {[%clk 0:01:15]} 23. Be3 {[%clk 0:01:05]}  Qd8 {[%clk 0:01:16]} 24. Bg5 {[%clk 0:01:02]}  f6 {[%clk 0:00:51]} 25. Bh6 {[%clk 0:00:47]}  Qd7 {[%clk 0:00:40]} 26. Rde1 {[%clk 0:00:42]}  Rae8 {[%clk 0:00:38]} 27. Nd4 {[%clk 0:00:38]}  Ng3 {[%clk 0:00:32]} 28. Rxe8 {[%clk 0:00:26]}  Rxe8 {[%clk 0:00:28]} 29. Rf3 {[%clk 0:00:20]}  Ne4 {[%clk 0:00:13]} 30. Bxe4 {[%clk 0:00:17]}  Rxe4 {[%clk 0:00:14]} 31. Bxg7 {[%clk 0:00:17]}  Qxg7 {[%clk 0:00:13]} 32. Ne6 {[%clk 0:00:17]}  Qe7 {[%clk 0:00:12]} 33. Re3 {[%clk 0:00:16]}  Rxe3 {[%clk 0:00:09]} 34. Qxe3 {[%clk 0:00:17]}  f5 {[%clk 0:00:09]} 35. Qd4 {[%clk 0:00:16]}  Nc2 {[%clk 0:00:06]} 36. Qc3 {[%clk 0:00:15]}  Nb4 {[%clk 0:00:05]} 37. Kh2 {[%clk 0:00:15]}  b6 {[%clk 0:00:05]} 38. Qd4 {[%clk 0:00:15]}  Nc2 {[%clk 0:00:03]} 39. Qxb6 {[%clk 0:00:15]}  f4 {[%clk 0:00:03]} 40. Qb8+ {[%clk 0:00:13]}  Kf7 {[%clk 0:00:04]} 41. Qh8 {[%clk 0:00:14]}  g5 {[%clk 0:00:03]} 42. Qxh7+ {[%clk 0:00:14]}  Kf6 {[%clk 0:00:04]} 43. Qh6+ {[%clk 0:00:13]}  Kf5 {[%clk 0:00:03]} 44. Qh7+ {[%clk 0:00:12]}  Ke5 {[%clk 0:00:00]} 45. Qxe7 {[%clk 0:00:12]} 1-0

[Event "December 5 Early 2023"]
[Site "https://www.chess.com"]
[Date "2023.12.05"]
[Round "9"]
[White "Vlassov, Nikolai"]
[Black "Eugene, Floryan"]
[Result "1-0"]
[Board "66"]
[TimeControl "180+1"]
[WhiteFideId "4103360"]
[BlackFideId "20694784"]
[WhiteElo "2657"]
[BlackElo "2520"]
[WhiteTeam "FID"]
[BlackTeam "FRA"]
[WhiteClock "0:01:12"]
[BlackClock "0:00:21"]

1. e4 {[%clk 0:03:00]}  c5 {[%clk 0:02:59]} 2. c3 {[%clk 0:02:59]}  d5 {[%clk 0:02:58]} 3. exd5 {[%clk 0:02:59]}  Qxd5 {[%clk 0:02:57]} 4. d4 {[%clk 0:02:59]}  Nf6 {[%clk 0:02:56]} 5. Nf3 {[%clk 0:02:59]}  Bg4 {[%clk 0:02:53]} 6. dxc5 {[%clk 0:02:55]}  Qxd1+ {[%clk 0:02:51]} 7. Kxd1 {[%clk 0:02:56]}  e5 {[%clk 0:02:47]} 8. b4 {[%clk 0:02:56]}  Nc6 {[%clk 0:02:36]} 9. h3 {[%clk 0:02:43]}  O-O-O+ {[%clk 0:02:30]} 10. Kc2 {[%clk 0:02:42]}  Bf5+ {[%clk 0:02:25]} 11. Kb2 {[%clk 0:02:35]}  Ne4 {[%clk 0:02:15]} 12. Be3 {[%clk 0:02:33]}  f6 {[%clk 0:02:13]} 13. Nbd2 {[%clk 0:02:29]}  a5 {[%clk 0:02:11]} 14. a3 {[%clk 0:02:28]}  Be7 {[%clk 0:02:06]} 15. Bb5 {[%clk 0:02:26]}  Rd7 {[%clk 0:01:58]} 16. Bxc6 {[%clk 0:02:16]}  bxc6 {[%clk 0:01:57]} 17. Nc4 {[%clk 0:02:16]}  axb4 {[%clk 0:01:51]} 18. axb4 {[%clk 0:02:12]}  Kb7 {[%clk 0:01:48]} 19. Ra3 {[%clk 0:02:03]}  Be6 {[%clk 0:01:47]} 20. Nb6 {[%clk 0:01:57]}  Rb8 {[%clk 0:01:15]} 21. Rha1 {[%clk 0:01:49]}  Kc7 {[%clk 0:01:09]} 22. Ra7+ {[%clk 0:01:45]}  Rb7 {[%clk 0:01:09]} 23. Nxd7 {[%clk 0:01:39]}  Bxd7 {[%clk 0:01:08]} 24. Nd2 {[%clk 0:01:36]}  Nxd2 {[%clk 0:01:00]} 25. Bxd2 {[%clk 0:01:36]}  f5 {[%clk 0:00:57]} 26. c4 {[%clk 0:01:31]}  Be6 {[%clk 0:00:54]} 27. Bc3 {[%clk 0:01:27]}  Bf6 {[%clk 0:00:51]} 28. b5 {[%clk 0:01:22]}  Bxc4 {[%clk 0:00:45]} 29. b6+ {[%clk 0:01:19]}  Kc8 {[%clk 0:00:45]} 30. Ra8+ {[%clk 0:01:16]}  Rb8 {[%clk 0:00:43]} 31. R1a7 {[%clk 0:01:12]}  Rxa8 {[%clk 0:00:21]} 32. b7+ {[%clk 0:01:12]} 1-0

[Event "December 5 Early 2023"]
[Site "https://www.chess.com"]
[Date "2023.12.05"]
[Round "9"]
[White "Reprintsev, Alexander"]
[Black "Moksh Amit Doshi"]
[Result "0-1"]
[Board "68"]
[TimeControl "180+1"]
[WhiteFideId "14100541"]
[BlackFideId "25064967"]
[WhiteElo "2497"]
[BlackElo "2642"]
[WhiteTeam "UKR"]
[BlackTeam "IND"]
[WhiteClock "0:00:32"]
[BlackClock "0:00:48"]

1. e4 {[%clk 0:03:00]}  e5 {[%clk 0:02:56]} 2. Nf3 {[%clk 0:03:00]}  Nc6 {[%clk 0:02:56]} 3. Bc4 {[%clk 0:02:59]}  Bc5 {[%clk 0:02:55]} 4. b4 {[%clk 0:02:59]}  Bxb4 {[%clk 0:02:53]} 5. c3 {[%clk 0:02:58]}  Ba5 {[%clk 0:02:54]} 6. d4 {[%clk 0:02:49]}  d6 {[%clk 0:02:54]} 7. Qb3 {[%clk 0:02:47]}  Qd7 {[%clk 0:02:55]} 8. O-O {[%clk 0:02:43]}  Bb6 {[%clk 0:02:53]} 9. Nbd2 {[%clk 0:02:42]}  Na5 {[%clk 0:02:52]} 10. Qc2 {[%clk 0:02:41]}  Ne7 {[%clk 0:02:52]} 11. dxe5 {[%clk 0:02:27]}  O-O {[%clk 0:02:51]} 12. exd6 {[%clk 0:02:24]}  Qxd6 {[%clk 0:02:49]} 13. e5 {[%clk 0:02:19]}  Qg6 {[%clk 0:02:40]} 14. Bd3 {[%clk 0:02:18]}  Bf5 {[%clk 0:02:39]} 15. Ne4 {[%clk 0:02:11]}  Qh5 {[%clk 0:02:27]} 16. Ng3 {[%clk 0:02:07]}  Bxd3 {[%clk 0:02:26]} 17. Qxd3 {[%clk 0:02:06]}  Qg6 {[%clk 0:02:27]} 18. Qe2 {[%clk 0:01:57]}  Rfe8 {[%clk 0:02:24]} 19. Be3 {[%clk 0:01:55]}  Bxe3 {[%clk 0:02:18]} 20. Qxe3 {[%clk 0:01:54]}  Nec6 {[%clk 0:02:17]} 21. Rfe1 {[%clk 0:01:52]}  Rad8 {[%clk 0:02:11]} 22. Rad1 {[%clk 0:01:45]}  Rxd1 {[%clk 0:02:09]} 23. Rxd1 {[%clk 0:01:45]}  Nc4 {[%clk 0:02:09]} 24. Qc5 {[%clk 0:01:38]}  Qc2 {[%clk 0:02:06]} 25. Qd5 {[%clk 0:01:18]}  h6 {[%clk 0:01:51]} 26. Qd3 {[%clk 0:01:14]}  Qxa2 {[%clk 0:01:45]} 27. h3 {[%clk 0:01:10]}  N4xe5 {[%clk 0:01:38]} 28. Nxe5 {[%clk 0:01:10]}  Nxe5 {[%clk 0:01:39]} 29. Qb5 {[%clk 0:01:08]}  Nc6 {[%clk 0:01:17]} 30. Qxb7 {[%clk 0:01:08]}  Qc4 {[%clk 0:01:17]} 31. Qxc7 {[%clk 0:01:05]}  Qxc3 {[%clk 0:01:17]} 32. Rd6 {[%clk 0:01:01]}  Qe1+ {[%clk 0:01:11]} 33. Kh2 {[%clk 0:01:01]}  Ne5 {[%clk 0:01:11]} 34. Qxa7 {[%clk 0:00:58]}  Rc8 {[%clk 0:01:07]} 35. f4 {[%clk 0:00:52]}  Rc3 {[%clk 0:00:49]} 36. Qa4 {[%clk 0:00:32]}  Qxg3+ {[%clk 0:00:48]} 0-1

[Event "December 5 Early 2023"]
[Site "https://www.chess.com"]
[Date "2023.12.05"]
[Round "9"]
[White "Ljukin, Sergei"]
[Black "Gontcharov, Vladislav"]
[Result "0-1"]
[Board "69"]
[TimeControl "180+1"]
[WhiteFideId "14102200"]
[BlackFideId "4123492"]
[WhiteElo "2490"]
[BlackElo "2640"]
[WhiteTeam "UKR"]
[BlackTeam "RUS"]
[WhiteClock "0:00:00"]
[BlackClock "0:00:35"]

1. e4 {[%clk 0:02:56]}  e6 {[%clk 0:02:59]} 2. d4 {[%clk 0:02:56]}  d5 {[%clk 0:03:00]} 3. Nc3 {[%clk 0:02:56]}  Nc6 {[%clk 0:02:59]} 4. Nf3 {[%clk 0:02:55]}  Nf6 {[%clk 0:02:58]} 5. e5 {[%clk 0:02:55]}  Ne4 {[%clk 0:02:59]} 6. a3 {[%clk 0:02:51]}  Nxc3 {[%clk 0:02:48]} 7. bxc3 {[%clk 0:02:50]}  Na5 {[%clk 0:02:46]} 8. Bd3 {[%clk 0:02:44]}  c5 {[%clk 0:02:40]} 9. dxc5 {[%clk 0:02:44]}  Bxc5 {[%clk 0:02:36]} 10. O-O {[%clk 0:02:44]}  h6 {[%clk 0:02:33]} 11. Nd4 {[%clk 0:02:42]}  Nc6 {[%clk 0:02:09]} 12. Nxc6 {[%clk 0:02:35]}  bxc6 {[%clk 0:02:09]} 13. Kh1 {[%clk 0:02:35]}  O-O {[%clk 0:02:02]} 14. Bf4 {[%clk 0:02:32]}  f5 {[%clk 0:01:58]} 15. exf6 {[%clk 0:02:17]}  Qxf6 {[%clk 0:01:57]} 16. Bg3 {[%clk 0:02:18]}  e5 {[%clk 0:01:54]} 17. f3 {[%clk 0:02:15]}  Bf5 {[%clk 0:01:45]} 18. c4 {[%clk 0:02:12]}  Rad8 {[%clk 0:01:43]} 19. cxd5 {[%clk 0:02:10]}  cxd5 {[%clk 0:01:43]} 20. Qe1 {[%clk 0:01:43]}  Rfe8 {[%clk 0:01:37]} 21. Qa5 {[%clk 0:01:43]}  Bb6 {[%clk 0:01:31]} 22. Qb5 {[%clk 0:01:41]}  Qg6 {[%clk 0:01:14]} 23. a4 {[%clk 0:01:27]}  e4 {[%clk 0:01:12]} 24. fxe4 {[%clk 0:01:25]}  Bxe4 {[%clk 0:01:09]} 25. a5 {[%clk 0:01:21]}  Bd4 {[%clk 0:01:08]} 26. Rad1 {[%clk 0:01:20]}  Kh7 {[%clk 0:00:55]} 27. Bxe4 {[%clk 0:00:44]}  Rxe4 {[%clk 0:00:49]} 28. c3 {[%clk 0:00:19]}  Bxc3 {[%clk 0:00:48]} 29. Rxd5 {[%clk 0:00:19]}  a6 {[%clk 0:00:42]} 30. Qb7 {[%clk 0:00:13]}  Rxd5 {[%clk 0:00:39]} 31. Qxd5 {[%clk 0:00:13]}  Ra4 {[%clk 0:00:39]} 32. Be1 {[%clk 0:00:00]}  Ra1 {[%clk 0:00:35]} 0-1

[Event "December 5 Early 2023"]
[Site "https://www.chess.com"]
[Date "2023.12.05"]
[Round "9"]
[White "Jakubowski, Krzysztof"]
[Black "Mestnikov, Aisen"]
[Result "1-0"]
[Board "70"]
[TimeControl "180+1"]
[WhiteFideId "1112848"]
[BlackFideId "34130117"]
[WhiteElo "2635"]
[BlackElo "2474"]
[WhiteTeam "POL"]
[BlackTeam "RUS"]
[WhiteClock "0:00:36"]
[BlackClock "0:00:00"]

1. e4 {[%clk 0:02:57]}  e5 {[%clk 0:02:59]} 2. Nf3 {[%clk 0:02:54]}  Nc6 {[%clk 0:03:00]} 3. Bc4 {[%clk 0:02:52]}  Bc5 {[%clk 0:02:58]} 4. O-O {[%clk 0:02:50]}  Nf6 {[%clk 0:02:59]} 5. d3 {[%clk 0:02:50]}  d6 {[%clk 0:02:58]} 6. c3 {[%clk 0:02:49]}  a5 {[%clk 0:02:58]} 7. a4 {[%clk 0:02:47]}  Ba7 {[%clk 0:02:57]} 8. Na3 {[%clk 0:02:42]}  h6 {[%clk 0:02:56]} 9. h3 {[%clk 0:02:36]}  O-O {[%clk 0:02:56]} 10. Re1 {[%clk 0:02:34]}  Be6 {[%clk 0:02:56]} 11. Qb3 {[%clk 0:02:31]}  Qc8 {[%clk 0:02:55]} 12. Be3 {[%clk 0:02:29]}  Ne7 {[%clk 0:02:52]} 13. Bxa7 {[%clk 0:02:26]}  Rxa7 {[%clk 0:02:51]} 14. d4 {[%clk 0:02:24]}  Ng6 {[%clk 0:02:50]} 15. Bxe6 {[%clk 0:02:19]}  fxe6 {[%clk 0:02:18]} 16. dxe5 {[%clk 0:02:18]}  dxe5 {[%clk 0:02:02]} 17. Nc4 {[%clk 0:02:13]}  Nd7 {[%clk 0:01:55]} 18. Rad1 {[%clk 0:02:11]}  Ra6 {[%clk 0:01:26]} 19. Re3 {[%clk 0:02:02]}  Rc6 {[%clk 0:01:12]} 20. Nxa5 {[%clk 0:01:46]}  Ra6 {[%clk 0:00:42]} 21. Nc4 {[%clk 0:01:10]}  Nc5 {[%clk 0:00:42]} 22. Qc2 {[%clk 0:01:05]}  Rxa4 {[%clk 0:00:41]} 23. b4 {[%clk 0:01:01]}  Qa8 {[%clk 0:00:28]} 24. Nb2 {[%clk 0:00:51]}  Ra2 {[%clk 0:00:16]} 25. bxc5 {[%clk 0:00:48]}  Qa3 {[%clk 0:00:16]} 26. Rb1 {[%clk 0:00:46]}  Rd8 {[%clk 0:00:10]} 27. Kh2 {[%clk 0:00:40]}  Qxc5 {[%clk 0:00:05]} 28. Qb3 {[%clk 0:00:38]}  Ra6 {[%clk 0:00:04]} 29. Nd3 {[%clk 0:00:37]}  Qc6 {[%clk 0:00:00]} 30. Nb4 {[%clk 0:00:36]} 1-0

[Event "December 5 Early 2023"]
[Site "https://www.chess.com"]
[Date "2023.12.05"]
[Round "9"]
[White "Bodnar, Nikolay"]
[Black "Mizzi, Jack"]
[Result "1-0"]
[Board "71"]
[TimeControl "180+1"]
[WhiteFideId "14106469"]
[BlackFideId "5602521"]
[WhiteElo "2631"]
[BlackElo "2464"]
[WhiteTeam "UKR"]
[BlackTeam "MLT"]
[WhiteClock "0:00:14"]
[BlackClock "0:00:00"]

1. c4 {[%clk 0:02:57]}  e5 {[%clk 0:02:59]} 2. g3 {[%clk 0:02:56]}  f5 {[%clk 0:02:58]} 3. Bg2 {[%clk 0:02:55]}  Nf6 {[%clk 0:02:57]} 4. d4 {[%clk 0:02:55]}  e4 {[%clk 0:02:56]} 5. Bg5 {[%clk 0:02:54]}  d5 {[%clk 0:02:46]} 6. cxd5 {[%clk 0:02:52]}  Qxd5 {[%clk 0:02:42]} 7. Bxf6 {[%clk 0:02:51]}  gxf6 {[%clk 0:02:42]} 8. Nc3 {[%clk 0:02:51]}  Bb4 {[%clk 0:02:34]} 9. e3 {[%clk 0:02:52]}  c5 {[%clk 0:02:30]} 10. Qh5+ {[%clk 0:02:47]}  Qf7 {[%clk 0:02:26]} 11. Qxf7+ {[%clk 0:02:47]}  Kxf7 {[%clk 0:02:26]} 12. Ne2 {[%clk 0:02:48]}  Nc6 {[%clk 0:02:24]} 13. O-O-O {[%clk 0:02:43]}  cxd4 {[%clk 0:02:22]} 14. exd4 {[%clk 0:02:39]}  Bd7 {[%clk 0:02:13]} 15. a3 {[%clk 0:02:39]}  Bxc3 {[%clk 0:02:10]} 16. Nxc3 {[%clk 0:02:33]}  Rac8 {[%clk 0:02:07]} 17. f3 {[%clk 0:02:31]}  exf3 {[%clk 0:01:59]} 18. Bxf3 {[%clk 0:02:31]}  Rhd8 {[%clk 0:01:54]} 19. Rhe1 {[%clk 0:02:26]}  b5 {[%clk 0:01:49]} 20. Kb1 {[%clk 0:02:24]}  b4 {[%clk 0:01:47]} 21. axb4 {[%clk 0:02:21]}  Nxb4 {[%clk 0:01:47]} 22. Rd2 {[%clk 0:02:14]}  a5 {[%clk 0:01:34]} 23. Rde2 {[%clk 0:02:13]}  a4 {[%clk 0:01:24]} 24. Nd5 {[%clk 0:02:04]}  Nxd5 {[%clk 0:01:21]} 25. Bxd5+ {[%clk 0:02:03]}  Kg6 {[%clk 0:01:19]} 26. Rd2 {[%clk 0:01:50]}  Bb5 {[%clk 0:01:15]} 27. Be6 {[%clk 0:01:47]}  Bd7 {[%clk 0:01:12]} 28. Bxd7 {[%clk 0:01:42]}  Rxd7 {[%clk 0:01:12]} 29. d5 {[%clk 0:01:39]}  Rc5 {[%clk 0:01:09]} 30. Red1 {[%clk 0:01:38]}  Kg5 {[%clk 0:01:08]} 31. Rd4 {[%clk 0:01:36]}  h5 {[%clk 0:01:04]} 32. R1d2 {[%clk 0:01:34]}  Ra5 {[%clk 0:01:00]} 33. d6 {[%clk 0:01:33]}  Kg6 {[%clk 0:00:53]} 34. Ka2 {[%clk 0:01:31]}  Kf7 {[%clk 0:00:50]} 35. Ka3 {[%clk 0:01:32]}  Ke6 {[%clk 0:00:48]} 36. Rxa4 {[%clk 0:01:31]}  Rb5 {[%clk 0:00:48]} 37. Ra6 {[%clk 0:01:24]}  Re5 {[%clk 0:00:32]} 38. b4 {[%clk 0:01:20]}  f4 {[%clk 0:00:30]} 39. gxf4 {[%clk 0:01:16]}  Re4 {[%clk 0:00:30]} 40. b5 {[%clk 0:01:07]}  Rxf4 {[%clk 0:00:28]} 41. Rc6 {[%clk 0:01:01]}  h4 {[%clk 0:00:20]} 42. b6 {[%clk 0:01:01]}  Rf1 {[%clk 0:00:18]} 43. b7 {[%clk 0:00:56]}  Rb1 {[%clk 0:00:15]} 44. Re2+ {[%clk 0:00:31]}  Kf7 {[%clk 0:00:12]} 45. Rc7 {[%clk 0:00:24]}  Rxb7 {[%clk 0:00:11]} 46. Rxb7 {[%clk 0:00:23]}  Rxb7 {[%clk 0:00:11]} 47. Re4 {[%clk 0:00:23]}  h3 {[%clk 0:00:06]} 48. Re3 {[%clk 0:00:21]}  Rd7 {[%clk 0:00:05]} 49. Rd3 {[%clk 0:00:20]}  Ke6 {[%clk 0:00:05]} 50. Kb3 {[%clk 0:00:21]}  Rxd6 {[%clk 0:00:04]} 51. Rxh3 {[%clk 0:00:21]}  Kf5 {[%clk 0:00:04]} 52. Kc3 {[%clk 0:00:22]}  Kg4 {[%clk 0:00:04]} 53. Rg3+ {[%clk 0:00:22]}  Kh4 {[%clk 0:00:04]} 54. Rg6 {[%clk 0:00:20]}  Kh5 {[%clk 0:00:03]} 55. Rg1 {[%clk 0:00:19]}  Kh4 {[%clk 0:00:03]} 56. Rf1 {[%clk 0:00:17]}  Kg5 {[%clk 0:00:02]} 57. Kc4 {[%clk 0:00:16]}  Rd2 {[%clk 0:00:00]} 58. h4+ {[%clk 0:00:14]} 1-0